bitfinex/quotes_BTCUSD_20250225
["timestamp","ask_amount","ask_price","bid_price","bid_amount"]
[1740526699854,0.0026964,88995.0,88994.0,0.30638707]
[1740526700103,0.0036964,88995.0,88994.0,0.30938707]
[1740526700747,0.0026964,88995.0,88994.0,0.30638707]
[1740526701036,0.0036964,88995.0,88994.0,0.30938707]
[1740526701466,0.01820931,89016.0,89000.0,0.168537]
[1740526701598,0.01862669,89016.0,89001.0,0.168537]
[1740526701804,0.01794153,89016.0,89002.0,0.01011814]
[1740526702013,0.01794153,89016.0,88994.0,0.1307]
[1740526702221,0.168516,89013.0,88994.0,0.1307]
[1740526702442,0.168516,89013.0,88996.0,0.168546]
[1740526702846,0.168516,89013.0,88997.0,0.01012491]
[1740526703073,0.01894153,89016.0,88999.0,0.16854]
[1740526703074,0.18745053,89016.0,88999.0,0.16854]
[1740526703268,0.18645053,89016.0,88999.0,0.16854]
[1740526703448,0.18645053,89016.0,88994.0,0.1247]
[1740526703449,0.01794153,89016.0,89000.0,0.01012085]
[1740526703863,0.168518,89012.0,88995.0,0.168548]
[1740526704289,0.224683,89014.0,88994.0,0.1247]
[1740526704290,0.168514,89013.0,88996.0,0.17866584]
[1740526704909,0.168516,89012.0,88996.0,0.01011984]
[1740526705116,0.224681,89015.0,88996.0,0.01011984]
[1740526705322,0.168545,88997.0,88996.0,0.01011984]
[1740526705529,0.168524,89008.0,88989.0,0.075]
[1740526705724,0.168514,89013.0,88996.0,0.01011984]
[1740526705902,0.3,89014.0,88989.0,0.075]
[1740526705903,0.01794153,89016.0,89001.0,0.0763]
[1740526706237,0.01794153,89016.0,89002.0,0.01011172]
[1740526706238,0.168528,89006.0,89002.0,0.01011172]
[1740526706374,0.168529,89005.0,89002.0,0.01011172]
[1740526706578,0.168529,89005.0,89001.0,0.0763]
[1740526706784,0.2247,89008.0,89001.0,0.0763]
[1740526706988,0.0210358,89012.0,89001.0,0.0763]
[1740526707200,0.0210358,89004.0,89002.0,0.01011172]
[1740526707647,0.0210358,89004.0,89002.0,0.01111172]
[1740526708847,0.01794153,89016.0,89002.0,0.01111172]
[1740526708848,0.0210358,89003.0,89002.0,0.17964672]
[1740526709009,0.0210358,89003.0,89002.0,0.31024672]
[1740526709427,0.0210358,89003.0,89002.0,0.31324672]
[1740526709645,0.0210358,89003.0,89002.0,0.30924672]
[1740526709989,0.01794153,89016.0,89008.0,0.168523]
[1740526710161,0.01794153,89016.0,89002.0,0.14371172]
[1740526710382,0.01794153,89016.0,89009.0,0.01010225]
[1740526710571,0.00041738,89016.0,89002.0,0.299135]
[1740526710787,0.00041738,89016.0,89002.0,0.303135]
[1740526710982,0.3166394,89016.0,89003.0,0.01040974]
[1740526711819,0.02106,89015.0,89003.0,0.01040974]
[1740526712760,0.01053294,89014.0,89003.0,0.01040974]
[1740526712963,0.01053294,89014.0,89005.0,0.168529]
[1740526713229,0.06529836,89014.0,89006.0,0.01039996]
[1740526713654,0.06529836,89014.0,89002.0,0.352311]
[1740526713856,0.06529836,89014.0,89007.0,0.01039861]
[1740526714155,0.01053294,89013.0,89003.0,0.168532]
[1740526714358,0.01053294,89013.0,89008.0,0.01039726]
[1740526714578,0.01053294,89013.0,89004.0,0.168531]
[1740526714775,0.05476542,89012.0,89009.0,0.0103959]
[1740526714931,0.05476542,89012.0,89002.0,0.1276]
[1740526715097,0.06529836,89012.0,89010.0,0.01039455]
[1740526715293,0.06529836,89012.0,89007.0,0.002]
[1740526715651,0.06529836,89012.0,89008.0,0.01039726]
[1740526715903,0.05476542,89011.0,89008.0,0.01039726]
[1740526716107,0.05476542,89011.0,89010.0,0.16852]
[1740526716319,0.05476542,89011.0,89010.0,0.39928516]
[1740526716490,0.06529836,89011.0,89010.0,0.42686361]
[1740526717284,0.03159294,89011.0,89010.0,0.42686361]
[1740526717825,0.03159294,89011.0,89010.0,0.13739859]
[1740526718024,0.03159294,89011.0,89010.0,0.08949859]
[1740526718181,0.03159294,89011.0,89010.0,0.25801859]
[1740526718582,0.03259294,89011.0,89010.0,0.26501859]
[1740526718811,0.03259294,89011.0,89010.0,0.25801859]
[1740526719184,0.03359294,89011.0,89010.0,0.26501859]
[1740526719367,0.01353294,89011.0,89010.0,0.27101859]
[1740526719824,0.01353294,89011.0,89010.0,0.26501859]
[1740526720050,0.01253294,89011.0,89010.0,0.26501859]
[1740526720216,0.01253294,89011.0,89010.0,0.02479859]
[1740526720217,0.01353294,89011.0,89010.0,0.02479859]
[1740526720417,0.18205094,89011.0,89010.0,0.02479859]
[1740526720773,0.18205094,89011.0,89010.0,0.01079859]
[1740526720774,0.47905094,89011.0,89010.0,0.01079859]
[1740526720939,0.3,89010.0,88980.0,0.0787]
[1740526721151,0.3,89000.0,88980.0,0.0787]
[1740526721464,0.01053294,89011.0,88981.0,0.00157313]
[1740526721679,0.01153294,89011.0,88982.0,0.00157313]
[1740526721831,0.3,89002.0,88984.0,0.224757]
[1740526722037,0.02104859,88999.0,88987.0,0.168562]
[1740526722415,0.02104859,88999.0,88985.0,0.17972965]
[1740526722589,0.02104859,88999.0,88987.0,0.224749]
[1740526722818,0.02104859,88999.0,88995.0,0.168548]
[1740526722991,0.02104859,88999.0,88996.0,0.01114776]
[1740526723223,0.168519,89011.0,88993.0,0.16855]
[1740526723438,0.0016968,89014.0,88988.0,0.224748]
[1740526723640,0.02104774,88998.0,88994.0,0.01115047]
[1740526723848,0.02104774,88998.0,88981.0,0.168574]
[1740526723957,0.02104774,88998.0,88995.0,0.003]
[1740526724372,0.02104774,88998.0,88981.0,0.224767]
[1740526724373,0.02104774,88998.0,88983.0,0.168571]
[1740526724571,0.02104774,88998.0,88984.0,0.01116401]
[1740526724797,0.168541,88999.0,88984.0,0.01116401]
[1740526725207,0.168533,89004.0,88986.0,0.168565]
[1740526725409,0.16853,89005.0,88995.0,0.003]
[1740526725614,0.16853,89005.0,88988.0,0.00157305]
[1740526725895,0.224688,89012.0,88989.0,0.17971524]
[1740526726104,0.168531,89004.0,88989.0,0.01115724]
[1740526726458,0.168531,89004.0,88986.0,0.168565]
[1740526726666,0.168535,89003.0,88990.0,0.01115589]
[1740526726996,0.0016964,89003.0,88993.0,0.168551]
[1740526727211,0.0016964,89003.0,89002.0,0.245035]
[1740526727418,0.0016964,89003.0,89002.0,0.08763964]
[1740526727997,0.1702294,89003.0,89002.0,0.01113964]
[1740526728202,0.0016964,89003.0,88993.0,0.0775]
[1740526728466,0.0016964,89003.0,88994.0,0.01116347]
[1740526728906,0.0016964,89003.0,89002.0,0.168535]
[1740526729083,0.0016964,89003.0,89002.0,0.17010774]
[1740526729227,0.0016964,89003.0,89002.0,0.1822867]
[1740526729604,0.168492,89025.0,89008.0,0.168522]
[1740526729963,0.01695943,89029.0,89009.0,0.01116949]
[1740526730187,0.16849,89026.0,89009.0,0.01116949]
[1740526730391,0.16849,89026.0,89009.0,0.168522]
[1740526730594,0.16849,89026.0,89007.0,0.00157274]
[1740526730767,0.01695943,89029.0,89011.0,0.168518]
[1740526730987,0.007,89025.0,89013.0,0.224686]
[1740526731163,0.007,89025.0,88997.0,0.3]
[1740526731164,0.007,89025.0,89014.0,0.08766272]
[1740526731938,0.00012516,89029.0,89014.0,0.08766272]
[1740526732119,0.224648,89028.0,89014.0,0.08766272]
[1740526732269,0.004,89025.0,89014.0,0.08766272]
[1740526732483,0.004,89025.0,89014.0,0.0765]
[1740526732686,0.168495,89024.0,89014.0,0.0765]
[1740526733822,0.171495,89024.0,89014.0,0.0765]
[1740526734628,0.175495,89024.0,89014.0,0.0765]
[1740526735438,0.007,89024.0,89014.0,0.0765]
[1740526735643,0.168496,89023.0,89014.0,0.0765]
[1740526736129,0.007,89024.0,89014.0,0.0765]
[1740526736359,0.00103909,89023.0,89002.0,0.3251]
[1740526736583,0.168515,89013.0,89002.0,0.3251]
[1740526737150,0.168514,89013.0,89002.0,0.3251]
[1740526738298,0.168514,89013.0,89002.0,0.3261]
[1740526738707,0.168521,89010.0,89002.0,0.3261]
[1740526738849,0.00103909,89023.0,89002.0,0.3261]
[1740526739046,0.168517,89012.0,89002.0,0.3261]
[1740526739248,0.224663,89022.0,89002.0,0.3271]
[1740526739490,0.16851,89016.0,89002.0,0.3271]
[1740526739705,0.0016966,89097.0,89002.0,0.3261]
[1740526739916,0.168509,89016.0,89002.0,0.3261]
[1740526740127,0.003,89023.0,89002.0,0.3261]
[1740526740302,0.224663,89022.0,89002.0,0.3251]
[1740526740644,0.0046962,89023.0,89002.0,0.3271]
[1740526740841,0.168508,89017.0,89002.0,0.3271]
[1740526741086,0.224672,89019.0,89002.0,0.3251]
[1740526741283,0.168513,89014.0,89002.0,0.3251]
[1740526741477,0.224663,89022.0,88999.0,0.077]
[1740526742022,0.224681,89016.0,88999.0,0.077]
[1740526742221,0.16852,89011.0,88999.0,0.077]
[1740526742445,0.0016962,89023.0,88999.0,0.077]
[1740526742776,0.168522,89009.0,88999.0,0.077]
[1740526742988,0.001,89019.0,88999.0,0.077]
[1740526743141,0.16852,89010.0,89000.0,0.01116673]
[1740526743577,0.168527,89007.0,89000.0,0.01116673]
[1740526743782,0.001,89019.0,89000.0,0.01116673]
[1740526743946,0.168525,89008.0,88999.0,0.077]
[1740526744148,0.003,89019.0,89001.0,0.01115833]
[1740526744396,0.168517,89012.0,88999.0,0.077]
[1740526744595,0.168519,89011.0,89002.0,0.01115659]
[1740526744772,0.168519,89011.0,89000.0,0.0131593]
[1740526744940,0.168519,89011.0,88999.0,0.077]
[1740526745136,0.168517,89012.0,89001.0,0.01115794]
[1740526745425,0.224687,89013.0,89000.0,0.0111593]
[1740526745625,0.168518,89011.0,89002.0,0.01115659]
[1740526745898,0.168518,89011.0,88999.0,0.077]
[1740526746295,0.3,89017.0,89000.0,0.00867513]
[1740526746645,0.168523,89009.0,88999.0,0.079]
[1740526746846,0.224685,89014.0,88999.0,0.079]
[1740526747216,0.168509,89016.0,89000.0,0.00867513]
[1740526747347,0.224677,89017.0,89000.0,0.002]
[1740526747552,0.168512,89014.0,89002.0,0.002]
[1740526747757,0.168514,89013.0,89003.0,0.00867197]
[1740526747958,0.168517,89012.0,89003.0,0.00867197]
[1740526748216,0.168519,89011.0,89003.0,0.00867197]
[1740526748413,0.16852,89011.0,88999.0,0.079]
[1740526748611,0.001,89016.0,89000.0,0.00867501]
[1740526748816,0.3,89019.0,89000.0,0.00867501]
[1740526748975,0.224685,89014.0,89000.0,0.00867501]
[1740526749320,0.3,89017.0,89003.0,0.001]
[1740526749881,0.168522,89009.0,89003.0,0.001]
[1740526750260,0.3,89017.0,89003.0,0.001]
[1740526750463,0.0016962,89023.0,89003.0,0.001]
[1740526750670,0.168518,89011.0,89003.0,0.001]
[1740526750909,0.3,89019.0,89004.0,0.00867102]
[1740526751200,0.168529,89006.0,89004.0,0.00867102]
[1740526751363,0.3,89022.0,89003.0,0.002]
[1740526751597,0.168557,88991.0,88990.0,0.083]
[1740526751919,0.168557,88991.0,88990.0,0.09168507]
[1740526752161,0.168557,88991.0,88990.0,0.00868507]
[1740526752162,0.468557,88991.0,88990.0,0.00868507]
[1740526752359,0.468557,88991.0,88990.0,0.01158009]
[1740526752542,0.168569,88984.0,88983.0,0.0008482]
[1740526752758,0.3,88985.0,88983.0,0.00126558]
[1740526752972,0.16960809,88984.0,88983.0,0.00126558]
[1740526753121,0.168569,88984.0,88983.0,0.00126558]
[1740526753320,0.3,88985.0,88983.0,0.00126558]
[1740526754010,0.224743,88991.0,88983.0,0.00126558]
[1740526754128,0.3,88989.0,88983.0,0.00126558]
[1740526754500,0.46856,88989.0,88983.0,0.00126558]
[1740526754707,0.168569,88984.0,88983.0,0.00426558]
[1740526755102,0.168569,88984.0,88983.0,0.00326558]
[1740526755431,0.18542256,88984.0,88983.0,0.00326558]
[1740526755628,0.18542256,88984.0,88983.0,0.00126558]
[1740526756869,0.18542256,88984.0,88983.0,0.00326558]
[1740526757306,0.48542256,88984.0,88983.0,0.00326558]
[1740526757743,0.48542256,88984.0,88983.0,0.00526558]
[1740526758370,0.48542256,88984.0,88983.0,0.00126558]
[1740526758809,0.48842256,88984.0,88983.0,0.00126558]
[1740526759129,0.48742256,88984.0,88983.0,0.00126558]
[1740526759945,0.48542256,88984.0,88983.0,0.00126558]
[1740526760145,0.48642256,88984.0,88983.0,0.00126558]
[1740526760512,0.70480923,88984.0,88983.0,0.00126558]
[1740526760649,0.74430923,88984.0,88983.0,0.00126558]
[1740526760845,0.74830923,88984.0,88983.0,0.00126558]
[1740526761046,0.168584,88976.0,88975.0,0.0008484]
[1740526761247,0.53895789,88976.0,88975.0,0.0008484]
[1740526761461,0.468584,88976.0,88975.0,0.0008484]
[1740526762267,0.471584,88976.0,88975.0,0.0008484]
[1740526763191,0.474584,88976.0,88975.0,0.0008484]
[1740526764219,0.471584,88976.0,88975.0,0.0008484]
[1740526764619,0.476584,88976.0,88975.0,0.0008484]
[1740526765209,0.473584,88976.0,88975.0,0.0008484]
[1740526765410,0.56861841,88976.0,88975.0,0.0008484]
[1740526765662,0.473584,88976.0,88975.0,0.0008484]
[1740526766578,0.478584,88976.0,88975.0,0.0060256]
[1740526773521,0.01,88976.0,88975.0,0.0060256]
[1740526773733,0.17962309,88976.0,88975.0,0.0060256]
[1740526775189,0.178584,88976.0,88975.0,0.0060256]
[1740526775404,0.17962309,88976.0,88975.0,0.0060256]
[1740526775567,0.478584,88976.0,88975.0,0.0060256]
[1740526777369,0.55943762,88976.0,88975.0,0.0060256]
[1740526777908,0.478584,88976.0,88975.0,0.0060256]
[1740526781725,0.224777,88978.0,88975.0,0.0060256]
[1740526782054,0.168584,88976.0,88975.0,0.0060256]
[1740526782839,0.0016966,88983.0,88975.0,0.0060256]
[1740526783043,0.0016966,88983.0,88976.0,0.01170817]
[1740526783294,0.0016966,88983.0,88977.0,0.0774]
[1740526783609,0.0016966,88983.0,88978.0,0.01170546]
[1740526783816,0.0016966,88983.0,88978.0,0.01070411]
[1740526784014,0.0016966,88983.0,88979.0,0.1265]
[1740526784216,0.0086966,88983.0,88980.0,0.00970275]
[1740526784657,0.1702686,88983.0,88980.0,0.01487995]
[1740526785825,0.168575,88981.0,88980.0,0.01487995]
[1740526786956,0.16961409,88981.0,88980.0,0.01487995]
[1740526787176,0.55585782,88981.0,88980.0,0.0051772]
[1740526787381,0.55481873,88981.0,88980.0,0.0051772]
[1740526788155,0.468575,88981.0,88980.0,0.0051772]
[1740526789546,0.469575,88981.0,88980.0,0.0051772]
[1740526790210,0.480575,88981.0,88980.0,0.0061772]
[1740526790417,0.479575,88981.0,88980.0,0.0051772]
[1740526790622,0.474575,88981.0,88980.0,0.0061772]
[1740526790790,0.480575,88981.0,88980.0,0.0061772]
[1740526790968,0.480575,88981.0,88980.0,0.0071772]
[1740526791167,0.482575,88981.0,88980.0,0.0071772]
[1740526791575,0.59643196,88981.0,88980.0,0.0071772]
[1740526792680,0.482575,88981.0,88980.0,0.0071772]
[1740526800911,0.49115629,88981.0,88980.0,0.0071772]
[1740526807323,0.50569714,88981.0,88980.0,0.0071772]
[1740526809795,0.49115629,88981.0,88980.0,0.0071772]
[1740526813811,0.49285289,88981.0,88980.0,0.0071772]
[1740526816748,0.20087524,88981.0,88980.0,0.0071772]
[1740526816894,0.36945024,88981.0,88980.0,0.0071772]
[1740526818368,0.02427789,88981.0,88980.0,0.1390772]
[1740526818575,0.02427789,88981.0,88980.0,0.14910159]
[1740526819491,0.49285289,88981.0,88980.0,0.14910159]
[1740526819857,0.49285289,88981.0,88980.0,0.1390772]
[1740526821000,0.2264606,88983.0,88980.0,0.1390772]
[1740526821200,0.168575,88981.0,88980.0,0.1390772]
[1740526821596,0.0016966,88983.0,88980.0,0.1390772]
[1740526821819,0.168575,88982.0,88980.0,0.1380772]
[1740526822015,0.168575,88982.0,88980.0,0.1390772]
[1740526822230,0.168575,88981.0,88980.0,0.1390772]
[1740526822431,0.168575,88981.0,88980.0,0.1380772]
[1740526823259,0.168575,88981.0,88980.0,0.1370772]
[1740526823464,0.170575,88981.0,88980.0,0.1370772]
[1740526824245,0.30860659,88982.0,88980.0,0.1370772]
[1740526824449,0.001,88981.0,88980.0,0.1370772]
[1740526824671,0.469575,88981.0,88980.0,0.1370772]
[1740526824874,0.468575,88981.0,88980.0,0.1370772]
[1740526825205,0.469575,88981.0,88980.0,0.1370772]
[1740526825929,0.301,88981.0,88980.0,0.1387738]
[1740526826344,0.3,88981.0,88980.0,0.1387738]
[1740526826837,0.3038483,88981.0,88980.0,0.1387738]
[1740526827246,0.3008483,88981.0,88980.0,0.1387738]
[1740526827844,0.3008483,88981.0,88980.0,0.1397738]
[1740526828062,0.3008483,88981.0,88980.0,0.1387738]
[1740526828552,0.4694233,88981.0,88980.0,0.14917277]
[1740526828782,0.4694233,88981.0,88980.0,0.1387738]
[1740526830480,0.4694233,88981.0,88980.0,0.0891738]
[1740526831915,0.19291267,88981.0,88980.0,0.0891738]
[1740526832117,0.1724233,88981.0,88980.0,0.0891738]
[1740526833164,0.1724233,88981.0,88980.0,0.0068738]
[1740526833331,0.17346239,88981.0,88980.0,0.0068738]
[1740526833809,0.1724233,88981.0,88980.0,0.0068738]
[1740526834039,0.17346239,88981.0,88980.0,0.0068738]
[1740526836554,0.30732305,88981.0,88980.0,0.0068738]
[1740526836752,0.30628396,88981.0,88980.0,0.0068738]
[1740526837883,0.40580048,88981.0,88980.0,0.0068738]
[1740526838281,0.41420242,88981.0,88980.0,0.0068738]
[1740526838708,0.3146859,88981.0,88980.0,0.0068738]
[1740526839258,0.6146859,88981.0,88980.0,0.0068738]
[1740526840404,0.48311985,88979.0,88978.0,0.0008483]
[1740526842408,0.61698051,88979.0,88978.0,0.0008483]
[1740526842588,0.61998051,88979.0,88978.0,0.0008483]
[1740526843311,0.7272712,88979.0,88978.0,0.0008483]
[1740526848539,0.60543966,88979.0,88978.0,0.0008483]
[1740526850562,0.60243966,88979.0,88978.0,0.0008483]
[1740526850934,0.60543966,88979.0,88978.0,0.0008483]
[1740526851909,0.61370822,88979.0,88978.0,0.0008483]
[1740526852527,0.61070822,88979.0,88978.0,0.0008483]
[1740526853057,0.61370822,88979.0,88978.0,0.0008483]
[1740526853818,0.61070822,88979.0,88978.0,0.0008483]
[1740526855869,0.61370822,88979.0,88978.0,0.0008483]
[1740526856293,0.61070822,88979.0,88978.0,0.0008483]
[1740526856626,0.74210603,88979.0,88978.0,0.0008483]
[1740526858394,0.74210603,88979.0,88978.0,0.0018483]
[1740526858830,0.73910603,88979.0,88978.0,0.0018483]
[1740526859054,0.168615,88960.0,88959.0,0.0318932]
[1740526859258,0.16865671,88960.0,88959.0,0.0318932]
[1740526861996,0.16865671,88960.0,88959.0,0.1127932]
[1740526862419,0.16965671,88960.0,88959.0,0.1127932]
[1740526863561,0.16965671,88960.0,88959.0,0.1136415]
[1740526864615,0.16865671,88960.0,88959.0,0.1136415]
[1740526864822,0.16965671,88960.0,88959.0,0.1136415]
[1740526865872,0.16865671,88960.0,88959.0,0.1136415]
[1740526866212,0.16965671,88960.0,88959.0,0.1136415]
[1740526867558,0.16865671,88960.0,88959.0,0.0008483]
[1740526867754,0.16965671,88960.0,88959.0,0.0008483]
[1740526868572,0.16865671,88960.0,88959.0,0.0008483]
[1740526868860,0.17065671,88960.0,88959.0,0.0008483]
[1740526869223,0.16865671,88960.0,88959.0,0.0008483]
[1740526869644,0.16965671,88960.0,88959.0,0.0008483]
[1740526870048,0.16865671,88960.0,88959.0,0.0008483]
[1740526870221,0.16965671,88960.0,88959.0,0.0008483]
[1740526870570,0.17065671,88960.0,88959.0,0.0008483]
[1740526871174,0.16965671,88960.0,88959.0,0.0008483]
[1740526871388,0.17165671,88960.0,88959.0,0.0008483]
[1740526875443,0.17335371,88960.0,88959.0,0.0008483]
[1740526880851,0.55314414,88960.0,88959.0,3e-07]
[1740526880961,0.55314414,88960.0,88942.0,0.0761]
[1740526880962,0.224841,88952.0,88942.0,0.0761]
[1740526881164,0.468641,88946.0,88933.0,0.0794]
[1740526882247,0.61704251,88946.0,88945.0,1e-07]
[1740526882432,0.61704251,88946.0,88924.0,0.0135265]
[1740526882433,0.468679,88926.0,88924.0,0.0135265]
[1740526883745,0.468679,88926.0,88925.0,0.0019747]
[1740526884294,0.33641963,88926.0,88925.0,7e-07]
[1740526884430,0.168727,88901.0,88895.0,0.1004655]
[1740526884855,0.168727,88901.0,88900.0,0.00141859]
[1740526885434,0.20260697,88901.0,88900.0,0.00141859]
[1740526886255,0.48806612,88901.0,88900.0,0.00541859]
[1740526886657,0.468727,88901.0,88900.0,0.00541859]
[1740526886859,0.48020161,88901.0,88900.0,0.00541859]
[1740526887294,0.47920161,88901.0,88900.0,0.00541859]
[1740526887594,0.59305857,88901.0,88900.0,0.00541859]
[1740526887821,0.16875,88889.0,88884.0,0.03501179]
[1740526888112,0.16875,88889.0,88884.0,0.03513682]
[1740526888510,0.168751,88888.0,88884.0,0.03513682]
[1740526888712,0.168752,88888.0,88884.0,0.03513682]
[1740526888913,0.224996,88891.0,88884.0,0.03013682]
[1740526888914,0.16875,88889.0,88884.0,0.03013682]
[1740526889294,0.01047461,88887.0,88884.0,0.03413682]
[1740526889520,0.01047461,88887.0,88884.0,0.03013682]
[1740526889959,0.168757,88885.0,88884.0,0.03413682]
[1740526890159,0.168757,88885.0,88884.0,0.03013682]
[1740526890935,0.17923161,88885.0,88884.0,0.03013682]
[1740526891579,0.168757,88885.0,88884.0,0.03113682]
[1740526891938,0.168757,88885.0,88884.0,0.03013682]
[1740526892278,0.169757,88885.0,88884.0,0.03113682]
[1740526893177,0.001,88885.0,88884.0,0.03113682]
[1740526893380,0.169757,88885.0,88884.0,0.03113682]
[1740526893547,0.170757,88885.0,88884.0,0.03113682]
[1740526894341,0.002,88885.0,88884.0,0.03113682]
[1740526894773,0.002,88885.0,88884.0,0.20486992]
[1740526894977,0.002,88885.0,88884.0,0.25304494]
[1740526895230,0.002,88885.0,88884.0,0.25146992]
[1740526896169,0.002,88885.0,88884.0,0.25046992]
[1740526896170,0.001,88885.0,88884.0,0.25046992]
[1740526896342,0.001,88885.0,88884.0,0.08171092]
[1740526896542,0.00103909,88920.0,88884.0,0.08171092]
[1740526896877,0.001,88885.0,88884.0,0.08671092]
[1740526897050,0.001,88885.0,88884.0,0.25546992]
[1740526897260,0.0136169,88902.0,88884.0,0.25046992]
[1740526897468,0.001,88885.0,88884.0,0.25546992]
[1740526897767,0.001,88885.0,88884.0,0.08671092]
[1740526898186,0.168726,88902.0,88884.0,0.08171092]
[1740526898386,0.3,88903.0,88884.0,0.25946992]
[1740526898387,0.001,88885.0,88884.0,0.25946992]
[1740526898594,0.001,88885.0,88884.0,0.09071092]
[1740526898814,0.001,88885.0,88884.0,0.09156012]
[1740526899597,0.001,88885.0,88884.0,0.08956012]
[1740526899921,0.001,88885.0,88884.0,0.09456012]
[1740526900097,0.002,88885.0,88884.0,0.09456012]
[1740526900914,0.002,88885.0,88884.0,0.26331912]
[1740526903924,0.03134716,88943.0,88892.0,0.3]
[1740526904151,0.03134716,88943.0,88935.0,0.1246]
[1740526904305,0.03134716,88943.0,88936.0,0.00157398]
[1740526904657,0.03134716,88943.0,88942.0,0.168649]
[1740526905067,0.03134716,88943.0,88942.0,0.17313811]
[1740526905185,0.01407129,88956.0,88942.0,0.00448911]
[1740526905385,0.301697,88960.0,88942.0,0.168647]
[1740526905590,0.30211446,88960.0,88943.0,0.17313472]
[1740526905805,0.31615225,88960.0,88943.0,0.00448872]
[1740526906033,0.168631,88952.0,88942.0,0.004]
[1740526906213,0.168624,88955.0,88937.0,0.08962431]
[1740526906416,0.3,88955.0,88938.0,0.00487747]
[1740526906618,0.3,88955.0,88939.0,0.00157388]
[1740526906838,0.3,88955.0,88946.0,0.08962431]
[1740526907042,0.00711446,88960.0,88947.0,0.00487363]
[1740526907265,0.00711446,88960.0,88951.0,0.16863]
[1740526907475,0.00711446,88960.0,88946.0,0.08962431]
[1740526907476,0.00411446,88960.0,88952.0,0.0048715]
[1740526907673,0.00411446,88960.0,88947.0,0.00157365]
[1740526907849,0.00411446,88960.0,88948.0,0.0048732]
[1740526908389,0.00411446,88960.0,88946.0,0.08962431]
[1740526908390,0.001,88955.0,88946.0,0.08962431]
[1740526908804,0.001,88955.0,88947.0,0.00487363]
[1740526909575,0.00211446,88960.0,88947.0,0.00487363]
[1740526910171,0.00211446,88960.0,88947.0,0.00787363]
[1740526911632,0.01045124,88959.0,88947.0,0.003]
[1740526911813,0.01045124,88959.0,88947.0,0.171639]
[1740526912011,0.01045124,88959.0,88948.0,0.00484915]
[1740526913183,0.01045124,88958.0,88948.0,0.00484915]
[1740526913405,0.03133538,88958.0,88948.0,0.00484915]
[1740526914020,0.03133538,88958.0,88948.0,0.001]
[1740526914281,0.168634,88950.0,88949.0,0.00484872]
[1740526914406,0.468635,88949.0,88948.0,0.002]
[1740526914613,0.468635,88949.0,88948.0,0.001]
[1740526914824,0.01045124,88950.0,88948.0,0.001]
[1740526915033,0.46967409,88949.0,88948.0,0.001]
[1740526915236,0.468635,88949.0,88948.0,0.001]
[1740526915706,0.468635,88949.0,88948.0,0.003]
[1740526916040,0.468635,88949.0,88914.0,0.251802]
[1740526916237,0.3,88933.0,88915.0,0.00807421]
[1740526916646,0.3,88933.0,88916.0,0.224929]
[1740526916846,0.3,88933.0,88920.0,0.168689]
[1740526917055,0.3,88933.0,88921.0,0.00649573]
[1740526917325,0.168666,88933.0,88921.0,0.00649573]
[1740526917505,0.02087032,88932.0,88921.0,0.00649573]
[1740526917711,0.02087032,88932.0,88920.0,0.16869]
[1740526917928,0.03132156,88932.0,88922.0,0.17518102]
[1740526918112,0.03132156,88932.0,88922.0,0.168686]
[1740526918393,0.01045124,88932.0,88923.0,0.00649431]
[1740526918789,0.01045124,88932.0,88925.0,0.224908]
[1740526918996,0.01045124,88932.0,88926.0,0.00157415]
[1740526919122,0.01045124,88932.0,88926.0,0.00806633]
[1740526919335,0.0004172,88933.0,88926.0,0.00157415]
[1740526919541,0.0004172,88933.0,88927.0,0.00649147]
[1740526919789,0.0004172,88933.0,88928.0,0.00157414]
[1740526920117,0.0004172,88933.0,88929.0,0.00650838]
[1740526920240,0.0004172,88933.0,88932.0,0.168668]
[1740526920439,0.0004172,88933.0,88932.0,0.17517425]
[1740526920657,0.0004172,88933.0,88932.0,0.00808031]
[1740526920863,0.0004172,88933.0,88932.0,0.00650625]
[1740526921124,0.0004172,88933.0,88929.0,0.224897]
[1740526921304,0.0004172,88933.0,88932.0,0.00651893]
[1740526921502,0.0004172,88933.0,88929.0,0.00657396]
[1740526921701,0.0004172,88933.0,88932.0,0.00651893]
[1740526921913,0.0004172,88933.0,88929.0,0.00657396]
[1740526921914,0.0004172,88933.0,88929.0,0.005]
[1740526922121,0.0004172,88933.0,88932.0,0.00651893]
[1740526922459,0.0004172,88933.0,88928.0,0.004]
[1740526922587,0.0004172,88933.0,88929.0,0.00559363]
[1740526922787,0.0004172,88933.0,88932.0,0.008]
[1740526923009,0.0004172,88933.0,88932.0,0.01452378]
[1740526923188,0.0004172,88933.0,88932.0,0.01052378]
[1740526924178,0.0004172,88933.0,88932.0,0.18076582]
[1740526924379,0.01087029,88933.0,88932.0,0.01452378]
[1740526925341,0.01087029,88933.0,88932.0,0.23099178]
[1740526925541,0.01087029,88933.0,88932.0,0.31079178]
[1740526925750,0.01087029,88933.0,88932.0,0.32095178]
[1740526925751,0.00752989,88933.0,88932.0,0.32095178]
[1740526925964,0.0016984,88976.0,88952.0,0.1]
[1740526925965,4e-07,88960.0,88952.0,0.1]
[1740526926185,4e-07,88960.0,88959.0,0.77278216]
[1740526926370,4e-07,88960.0,88959.0,0.96632969]
[1740526926589,4e-07,88960.0,88959.0,1.01805659]
[1740526926932,4e-07,88960.0,88959.0,1.02093546]
[1740526927804,0.0016984,88976.0,88975.0,0.18312685]
[1740526928004,0.00182354,88976.0,88975.0,0.64322685]
[1740526928208,0.00182354,88976.0,88975.0,0.6539101]
[1740526929649,0.00182354,88976.0,88975.0,0.6609101]
[1740526930206,0.00182354,88976.0,88975.0,0.6749101]
[1740526930440,0.00182354,88976.0,88975.0,0.6609101]
[1740526930797,0.00182354,88976.0,88975.0,0.6679101]
[1740526931201,0.00182354,88976.0,88975.0,0.68214179]
[1740526932045,0.0808,89030.0,88977.0,0.01454085]
[1740526932245,0.0018184,89023.0,88980.0,0.08962431]
[1740526932477,0.168515,89013.0,88994.0,0.168549]
[1740526932861,0.0018184,89023.0,88995.0,0.00799115]
[1740526933072,0.0018184,89023.0,88981.0,0.32667283]
[1740526933272,0.168516,89012.0,88996.0,0.01061595]
[1740526933449,0.01394728,89012.0,88981.0,0.3251]
[1740526933648,0.0068184,89023.0,88997.0,0.01061453]
[1740526933875,0.0038184,89023.0,88999.0,0.224719]
[1740526934092,0.0038184,89023.0,89000.0,0.00157271]
[1740526934279,0.0068184,89023.0,89001.0,0.0818]